[Event "November 21 Early 2023"]
[Site "https://www.chess.com"]
[Date "2023.11.21"]
[Round "5"]
[White "Dodaro, Mattia"]
[Black "Do Nascimento,Christian Almeida"]
[Result "0-1"]
[Board "136"]
[TimeControl "180+1"]
[WhiteFideId "28583400"]
[BlackFideId "2143801"]
[WhiteElo "2243"]
[BlackElo "2118"]
[WhiteTeam "ITA"]
[BlackTeam "BRA"]
[WhiteClock "0:00:02"]
[BlackClock "0:00:18"]

1. Nf3 {[%clk 0:02:55]}  Nf6 {[%clk 0:02:59]} 2. g3 {[%clk 0:02:55]}  g6 {[%clk 0:02:59]} 3. Bg2 {[%clk 0:02:56]}  Bg7 {[%clk 0:02:59]} 4. O-O {[%clk 0:02:56]}  O-O {[%clk 0:02:59]} 5. Re1 {[%clk 0:02:57]}  c5 {[%clk 0:03:00]} 6. e4 {[%clk 0:02:57]}  d6 {[%clk 0:03:00]} 7. c3 {[%clk 0:02:57]}  Nc6 {[%clk 0:03:01]} 8. d4 {[%clk 0:02:57]}  cxd4 {[%clk 0:03:02]} 9. cxd4 {[%clk 0:02:58]}  Bg4 {[%clk 0:03:01]} 10. Nc3 {[%clk 0:02:53]}  Nd7 {[%clk 0:02:59]} 11. Be3 {[%clk 0:02:51]}  e5 {[%clk 0:02:57]} 12. d5 {[%clk 0:02:49]}  Nd4 {[%clk 0:02:57]} 13. Bxd4 {[%clk 0:02:29]}  exd4 {[%clk 0:02:55]} 14. Nb5 {[%clk 0:02:30]}  Qb6 {[%clk 0:02:43]} 15. Nbxd4 {[%clk 0:02:27]}  Qxb2 {[%clk 0:02:20]} 16. Rb1 {[%clk 0:02:22]}  Qc3 {[%clk 0:02:18]} 17. Rxb7 {[%clk 0:02:06]}  Nc5 {[%clk 0:02:04]} 18. Rb1 {[%clk 0:01:57]}  Nd3 {[%clk 0:02:02]} 19. Nb5 {[%clk 0:01:50]}  Qxe1+ {[%clk 0:01:55]} 20. Nxe1 {[%clk 0:01:25]}  Bxd1 {[%clk 0:01:54]} 21. Rxd1 {[%clk 0:01:24]}  Nxe1 {[%clk 0:01:54]} 22. Rxe1 {[%clk 0:01:25]}  Rfd8 {[%clk 0:01:52]} 23. Bh3 {[%clk 0:01:16]}  Bf8 {[%clk 0:01:38]} 24. Rc1 {[%clk 0:01:11]}  a6 {[%clk 0:01:35]} 25. Nc7 {[%clk 0:01:05]}  Ra7 {[%clk 0:01:36]} 26. Rc6 {[%clk 0:01:06]}  Rb8 {[%clk 0:01:21]} 27. Nxa6 {[%clk 0:00:54]}  Rb1+ {[%clk 0:01:18]} 28. Bf1 {[%clk 0:00:23]}  Rb2 {[%clk 0:01:17]} 29. a4 {[%clk 0:00:18]}  Ra2 {[%clk 0:01:15]} 30. Bb5 {[%clk 0:00:17]}  h5 {[%clk 0:01:08]} 31. Kg2 {[%clk 0:00:17]}  g5 {[%clk 0:01:06]} 32. h3 {[%clk 0:00:17]}  Re7 {[%clk 0:01:04]} 33. Rc4 {[%clk 0:00:12]}  f5 {[%clk 0:00:57]} 34. exf5 {[%clk 0:00:06]}  Ree2 {[%clk 0:00:56]} 35. Bd7 {[%clk 0:00:04]}  Rxf2+ {[%clk 0:00:56]} 36. Kg1 {[%clk 0:00:05]}  Rg2+ {[%clk 0:00:53]} 37. Kf1 {[%clk 0:00:05]}  Rh2 {[%clk 0:00:52]} 38. Kg1 {[%clk 0:00:04]}  Rhg2+ {[%clk 0:00:51]} 39. Kf1 {[%clk 0:00:04]}  Rxg3 {[%clk 0:00:51]} 40. f6 {[%clk 0:00:04]}  Rf3+ {[%clk 0:00:49]} 41. Kg1 {[%clk 0:00:03]}  Rxf6 {[%clk 0:00:49]} 42. Nb4 {[%clk 0:00:02]}  Ra1+ {[%clk 0:00:46]} 43. Kg2 {[%clk 0:00:03]}  Raf1 {[%clk 0:00:47]} 44. Nc6 {[%clk 0:00:02]}  R6f2+ {[%clk 0:00:46]} 45. Kg3 {[%clk 0:00:03]}  Rf3+ {[%clk 0:00:43]} 46. Kg2 {[%clk 0:00:03]}  R1f2+ {[%clk 0:00:44]} 47. Kg1 {[%clk 0:00:02]}  Ra2 {[%clk 0:00:40]} 48. Be6+ {[%clk 0:00:03]}  Kg7 {[%clk 0:00:39]} 49. Nd4 {[%clk 0:00:04]}  Rf4 {[%clk 0:00:19]} 50. Nf5+ {[%clk 0:00:04]}  Kf6 {[%clk 0:00:19]} 51. Rc7 {[%clk 0:00:02]}  Ke5 {[%clk 0:00:19]} 52. Rf7 {[%clk 0:00:02]}  Rb4 {[%clk 0:00:17]} 53. Ne3 {[%clk 0:00:01]}  Rb1+ {[%clk 0:00:17]} 54. Nf1 {[%clk 0:00:02]}  Bh6 {[%clk 0:00:17]} 55. Rf5+ {[%clk 0:00:02]}  Kd4 {[%clk 0:00:16]} 56. Rf6 {[%clk 0:00:03]}  Bg7 {[%clk 0:00:16]} 57. Rg6 {[%clk 0:00:03]}  Be5 {[%clk 0:00:17]} 58. Rxg5 {[%clk 0:00:03]}  Bh2+ {[%clk 0:00:17]} 59. Kh1 {[%clk 0:00:03]}  Rxf1+ {[%clk 0:00:17]} 60. Rg1 {[%clk 0:00:02]}  Rxg1# {[%clk 0:00:18]} 0-1

[Event "November 21 Early 2023"]
[Site "https://www.chess.com"]
[Date "2023.11.21"]
[Round "5"]
[White "Eugene, Floryan"]
[Black "Quirke, Jeffrey"]
[Result "1-0"]
[Board "141"]
[TimeControl "180+1"]
[WhiteFideId "20694784"]
[BlackFideId "2013029"]
[WhiteElo "2369"]
[BlackElo "2223"]
[WhiteTeam "FRA"]
[BlackTeam "USA"]
[WhiteClock "0:01:19"]
[BlackClock "0:00:00"]

1. d4 {[%clk 0:02:57]}  Nf6 {[%clk 0:02:58]} 2. c4 {[%clk 0:02:57]}  g6 {[%clk 0:02:59]} 3. Nf3 {[%clk 0:02:56]}  Bg7 {[%clk 0:02:58]} 4. Nc3 {[%clk 0:02:57]}  d5 {[%clk 0:02:58]} 5. Bg5 {[%clk 0:02:57]}  Ne4 {[%clk 0:02:55]} 6. Bh4 {[%clk 0:02:57]}  Nxc3 {[%clk 0:02:54]} 7. bxc3 {[%clk 0:02:58]}  dxc4 {[%clk 0:02:54]} 8. e3 {[%clk 0:02:58]}  Be6 {[%clk 0:02:49]} 9. Qb1 {[%clk 0:02:54]}  c5 {[%clk 0:02:35]} 10. Qxb7 {[%clk 0:02:42]}  Nd7 {[%clk 0:02:35]} 11. Be2 {[%clk 0:02:34]}  O-O {[%clk 0:02:33]} 12. O-O {[%clk 0:02:34]}  Qa5 {[%clk 0:01:35]} 13. Rfc1 {[%clk 0:02:32]}  Rab8 {[%clk 0:01:26]} 14. Qe4 {[%clk 0:02:27]}  Rb2 {[%clk 0:01:05]} 15. Bf1 {[%clk 0:02:26]}  Nf6 {[%clk 0:00:51]} 16. Bxf6 {[%clk 0:02:00]}  Bxf6 {[%clk 0:00:50]} 17. d5 {[%clk 0:02:00]}  Bf5 {[%clk 0:00:39]} 18. Qxc4 {[%clk 0:01:59]}  Bc2 {[%clk 0:00:28]} 19. Ne1 {[%clk 0:01:25]}  Bxc3 {[%clk 0:00:08]} 20. Nxc2 {[%clk 0:01:24]}  Rxc2 {[%clk 0:00:08]} 21. Rxc2 {[%clk 0:01:24]}  Bxa1 {[%clk 0:00:08]} 22. Qxc5 {[%clk 0:01:23]}  Qxc5 {[%clk 0:00:07]} 23. Rxc5 {[%clk 0:01:23]}  Rb8 {[%clk 0:00:06]} 24. Rc7 {[%clk 0:01:23]}  Bf6 {[%clk 0:00:02]} 25. Rxa7 {[%clk 0:01:23]}  Rb2 {[%clk 0:00:02]} 26. g3 {[%clk 0:01:20]}  Kg7 {[%clk 0:00:02]} 27. a4 {[%clk 0:01:20]}  h5 {[%clk 0:00:02]} 28. h4 {[%clk 0:01:19]}  Ra2 {[%clk 0:00:00]} 29. a5 {[%clk 0:01:19]} 1-0

[Event "November 21 Early 2023"]
[Site "https://www.chess.com"]
[Date "2023.11.21"]
[Round "5"]
[White "Semenova, Alina"]
[Black "Kuegel, Tobias"]
[Result "0-1"]
[Board "142"]
[TimeControl "180+1"]
[WhiteFideId "24113875"]
[BlackFideId "4636295"]
[WhiteElo "1827"]
[BlackElo "2213"]
[WhiteTeam "RUS"]
[BlackTeam "GER"]
[WhiteClock "0:00:00"]
[BlackClock "0:00:02"]

1. e4 {[%clk 0:02:59]}  e5 {[%clk 0:02:55]} 2. Nf3 {[%clk 0:02:59]}  Nc6 {[%clk 0:02:56]} 3. d4 {[%clk 0:02:59]}  exd4 {[%clk 0:02:56]} 4. Nxd4 {[%clk 0:03:00]}  Nf6 {[%clk 0:02:57]} 5. Nxc6 {[%clk 0:03:00]}  bxc6 {[%clk 0:02:58]} 6. e5 {[%clk 0:03:00]}  Qe7 {[%clk 0:02:58]} 7. Qe2 {[%clk 0:03:01]}  Nd5 {[%clk 0:02:58]} 8. c4 {[%clk 0:03:00]}  Ba6 {[%clk 0:02:58]} 9. b3 {[%clk 0:03:00]}  g6 {[%clk 0:02:58]} 10. Bb2 {[%clk 0:03:01]}  Bg7 {[%clk 0:02:58]} 11. g3 {[%clk 0:03:01]}  O-O {[%clk 0:02:58]} 12. Bg2 {[%clk 0:03:01]}  Rae8 {[%clk 0:02:57]} 13. O-O {[%clk 0:02:59]}  Bxe5 {[%clk 0:02:57]} 14. Qxe5 {[%clk 0:02:59]}  Qxe5 {[%clk 0:02:58]} 15. Bxe5 {[%clk 0:02:59]}  Rxe5 {[%clk 0:02:59]} 16. cxd5 {[%clk 0:03:00]}  Bxf1 {[%clk 0:02:59]} 17. Kxf1 {[%clk 0:03:00]}  cxd5 {[%clk 0:02:59]} 18. Nd2 {[%clk 0:02:51]}  Rfe8 {[%clk 0:02:50]} 19. Rd1 {[%clk 0:02:44]}  c6 {[%clk 0:02:45]} 20. f4 {[%clk 0:02:32]}  Re3 {[%clk 0:02:26]} 21. Nf3 {[%clk 0:02:16]}  Rc3 {[%clk 0:02:07]} 22. Rd2 {[%clk 0:01:57]}  a5 {[%clk 0:02:05]} 23. Kf2 {[%clk 0:01:54]}  Ra8 {[%clk 0:01:38]} 24. Ne5 {[%clk 0:01:48]}  d6 {[%clk 0:01:31]} 25. Nxc6 {[%clk 0:01:46]}  Rxc6 {[%clk 0:01:00]} 26. Bxd5 {[%clk 0:01:46]}  Rac8 {[%clk 0:00:59]} 27. Bxc6 {[%clk 0:01:45]}  Rxc6 {[%clk 0:01:00]} 28. Ke3 {[%clk 0:01:45]}  Kf8 {[%clk 0:00:55]} 29. Rd5 {[%clk 0:01:40]}  Ra6 {[%clk 0:00:52]} 30. Kd4 {[%clk 0:01:40]}  Ke7 {[%clk 0:00:48]} 31. Rb5 {[%clk 0:01:38]}  Ke6 {[%clk 0:00:40]} 32. h3 {[%clk 0:01:27]}  h5 {[%clk 0:00:19]} 33. g4 {[%clk 0:01:26]}  hxg4 {[%clk 0:00:19]} 34. hxg4 {[%clk 0:01:27]}  f5 {[%clk 0:00:20]} 35. g5 {[%clk 0:01:27]}  a4 {[%clk 0:00:17]} 36. b4 {[%clk 0:01:27]}  a3 {[%clk 0:00:16]} 37. Ra5 {[%clk 0:01:08]}  Rb6 {[%clk 0:00:14]} 38. Kc4 {[%clk 0:01:06]}  d5+ {[%clk 0:00:12]} 39. Kb3 {[%clk 0:00:43]}  d4 {[%clk 0:00:10]} 40. Re5+ {[%clk 0:00:29]}  Kd6 {[%clk 0:00:10]} 41. b5 {[%clk 0:00:29]}  d3 {[%clk 0:00:06]} 42. Kc3 {[%clk 0:00:28]}  Rb8 {[%clk 0:00:05]} 43. Kxd3 {[%clk 0:00:28]}  Rh8 {[%clk 0:00:05]} 44. b6 {[%clk 0:00:22]}  Rh3+ {[%clk 0:00:01]} 45. Kc4 {[%clk 0:00:20]}  Kc6 {[%clk 0:00:02]} 46. Re6+ {[%clk 0:00:17]}  Kb7 {[%clk 0:00:02]} 47. Rxg6 {[%clk 0:00:17]}  Rh4 {[%clk 0:00:03]} 48. Kb3 {[%clk 0:00:16]}  Rxf4 {[%clk 0:00:03]} 49. Kxa3 {[%clk 0:00:17]}  Rg4 {[%clk 0:00:03]} 50. Kb3 {[%clk 0:00:15]}  f4 {[%clk 0:00:03]} 51. a4 {[%clk 0:00:15]}  f3 {[%clk 0:00:03]} 52. a5 {[%clk 0:00:13]}  f2 {[%clk 0:00:03]} 53. Rg7+ {[%clk 0:00:09]}  Ka6 {[%clk 0:00:02]} 54. Ra7+ {[%clk 0:00:10]}  Kb5 {[%clk 0:00:03]} 55. b7 {[%clk 0:00:09]}  Rb4+ {[%clk 0:00:02]} 56. Ka3 {[%clk 0:00:08]}  Ra4+ {[%clk 0:00:02]} 57. Kb3 {[%clk 0:00:08]}  Rb4+ {[%clk 0:00:03]} 58. Kc3 {[%clk 0:00:07]}  Kc5 {[%clk 0:00:03]} 59. b8=Q {[%clk 0:00:06]}  Rxb8 {[%clk 0:00:03]} 60. Rf7 {[%clk 0:00:06]}  Rg8 {[%clk 0:00:02]} 61. Rxf2 {[%clk 0:00:02]}  Rxg5 {[%clk 0:00:02]} 62. Ra2 {[%clk 0:00:02]}  Rg3+ {[%clk 0:00:02]} 63. Kb2 {[%clk 0:00:00]}  Kb4 {[%clk 0:00:02]} 0-1

[Event "November 21 Early 2023"]
[Site "https://www.chess.com"]
[Date "2023.11.21"]
[Round "5"]
[White "Tasev, Dejan"]
[Black "Mishra, Manoj"]
[Result "1-0"]
[Board "143"]
[TimeControl "180+1"]
[WhiteFideId "936618"]
[BlackFideId "5006007"]
[WhiteElo "2248"]
[BlackElo "1847"]
[WhiteTeam "SRB"]
[BlackTeam "IND"]
[WhiteClock "0:01:40"]
[BlackClock "0:00:17"]

1. e4 {[%clk 0:03:00]}  c5 {[%clk 0:02:56]} 2. Nf3 {[%clk 0:03:00]}  d6 {[%clk 0:02:55]} 3. Nc3 {[%clk 0:03:00]}  Nf6 {[%clk 0:02:52]} 4. d4 {[%clk 0:03:00]}  cxd4 {[%clk 0:02:51]} 5. Nxd4 {[%clk 0:03:01]}  a6 {[%clk 0:02:51]} 6. Bc4 {[%clk 0:03:01]}  b5 {[%clk 0:02:50]} 7. Bb3 {[%clk 0:03:01]}  e6 {[%clk 0:02:48]} 8. f3 {[%clk 0:03:01]}  Be7 {[%clk 0:02:46]} 9. a3 {[%clk 0:03:01]}  Qb6 {[%clk 0:02:32]} 10. Be3 {[%clk 0:02:59]}  Nc6 {[%clk 0:02:29]} 11. Qd2 {[%clk 0:02:37]}  Nxd4 {[%clk 0:02:14]} 12. Bxd4 {[%clk 0:02:37]}  Qc7 {[%clk 0:02:12]} 13. O-O {[%clk 0:02:36]}  O-O {[%clk 0:02:10]} 14. Rfd1 {[%clk 0:02:35]}  Rd8 {[%clk 0:01:59]} 15. Rac1 {[%clk 0:02:34]}  Bb7 {[%clk 0:01:53]} 16. Qf2 {[%clk 0:02:33]}  Rd7 {[%clk 0:01:50]} 17. Ne2 {[%clk 0:02:28]}  a5 {[%clk 0:01:40]} 18. Qg3 {[%clk 0:02:10]}  a4 {[%clk 0:01:05]} 19. Ba2 {[%clk 0:02:08]}  d5 {[%clk 0:00:55]} 20. e5 {[%clk 0:01:57]}  Ne8 {[%clk 0:00:43]} 21. c3 {[%clk 0:01:54]}  Bc5 {[%clk 0:00:36]} 22. Bb1 {[%clk 0:01:53]}  g6 {[%clk 0:00:35]} 23. h4 {[%clk 0:01:52]}  Ng7 {[%clk 0:00:34]} 24. Qg5 {[%clk 0:01:48]}  Bd6 {[%clk 0:00:28]} 25. exd6 {[%clk 0:01:47]}  Qxd6 {[%clk 0:00:24]} 26. Be5 {[%clk 0:01:41]}  Qc5+ {[%clk 0:00:17]} 27. Nd4 {[%clk 0:01:40]} 1-0

[Event "November 21 Early 2023"]
[Site "https://www.chess.com"]
[Date "2023.11.21"]
[Round "5"]
[White "Figorito, Nick"]
[Black "MKlose11"]
[Result "0-1"]
[Board "144"]
[TimeControl "180+1"]
[WhiteFideId "30923689"]
[WhiteElo "2384"]
[BlackElo "2651"]
[WhiteTeam "USA"]
[WhiteClock "0:00:50"]
[BlackClock "0:02:15"]

1. Nf3 {[%clk 0:03:00]}  Nf6 {[%clk 0:02:55]} 2. g3 {[%clk 0:03:01]}  g6 {[%clk 0:02:56]} 3. Bg2 {[%clk 0:03:02]}  Bg7 {[%clk 0:02:56]} 4. O-O {[%clk 0:03:02]}  c5 {[%clk 0:02:57]} 5. c4 {[%clk 0:03:03]}  Nc6 {[%clk 0:02:57]} 6. d4 {[%clk 0:03:04]}  cxd4 {[%clk 0:02:57]} 7. Nxd4 {[%clk 0:03:04]}  O-O {[%clk 0:02:58]} 8. Nc2 {[%clk 0:03:05]}  d6 {[%clk 0:02:58]} 9. Nc3 {[%clk 0:03:05]}  Qa5 {[%clk 0:02:58]} 10. Qd2 {[%clk 0:03:05]}  Qh5 {[%clk 0:02:57]} 11. Qg5 {[%clk 0:03:04]}  Qxg5 {[%clk 0:02:54]} 12. Bxg5 {[%clk 0:03:05]}  Be6 {[%clk 0:02:54]} 13. b3 {[%clk 0:03:04]}  Rfe8 {[%clk 0:02:52]} 14. Rad1 {[%clk 0:03:02]}  Rac8 {[%clk 0:02:52]} 15. Ne3 {[%clk 0:02:53]}  a6 {[%clk 0:02:52]} 16. Bxf6 {[%clk 0:02:52]}  Bxf6 {[%clk 0:02:52]} 17. Ncd5 {[%clk 0:02:53]}  Bxd5 {[%clk 0:02:50]} 18. Nxd5 {[%clk 0:02:52]}  Bg7 {[%clk 0:02:49]} 19. Nb6 {[%clk 0:02:49]}  Rc7 {[%clk 0:02:48]} 20. Nd5 {[%clk 0:02:49]}  Rcc8 {[%clk 0:02:47]} 21. Nb6 {[%clk 0:02:49]}  Rb8 {[%clk 0:02:46]} 22. Nd7 {[%clk 0:02:44]}  Rbd8 {[%clk 0:02:44]} 23. Nb6 {[%clk 0:02:44]}  Kf8 {[%clk 0:02:44]} 24. Nd5 {[%clk 0:02:44]}  e6 {[%clk 0:02:39]} 25. Ne3 {[%clk 0:02:40]}  Ke7 {[%clk 0:02:39]} 26. Nc2 {[%clk 0:02:38]}  Rc8 {[%clk 0:02:37]} 27. a4 {[%clk 0:02:32]}  Rc7 {[%clk 0:02:33]} 28. e3 {[%clk 0:02:29]}  g5 {[%clk 0:02:31]} 29. Bxc6 {[%clk 0:02:26]}  bxc6 {[%clk 0:02:30]} 30. b4 {[%clk 0:02:12]}  a5 {[%clk 0:02:30]} 31. Rb1 {[%clk 0:02:04]}  axb4 {[%clk 0:02:29]} 32. Rxb4 {[%clk 0:01:58]}  Ra8 {[%clk 0:02:29]} 33. Rfb1 {[%clk 0:01:47]}  c5 {[%clk 0:02:28]} 34. Rb7 {[%clk 0:01:47]}  Kd7 {[%clk 0:02:28]} 35. Na3 {[%clk 0:01:25]}  Rxa4 {[%clk 0:02:25]} 36. Rxc7+ {[%clk 0:01:25]}  Kxc7 {[%clk 0:02:25]} 37. Nb5+ {[%clk 0:01:23]}  Kc6 {[%clk 0:02:26]} 38. Rc1 {[%clk 0:01:20]}  d5 {[%clk 0:02:22]} 39. cxd5+ {[%clk 0:00:56]}  Kxb5 {[%clk 0:02:20]} 40. d6 {[%clk 0:00:50]}  Ra7 {[%clk 0:02:15]} 0-1

[Event "November 21 Early 2023"]
[Site "https://www.chess.com"]
[Date "2023.11.21"]
[Round "5"]
[White "Haitin, Ilja"]
[Black "Rosner, Jonas"]
[Result "1/2-1/2"]
[Board "145"]
[TimeControl "180+1"]
[WhiteFideId "4501764"]
[BlackFideId "24608513"]
[WhiteElo "2221"]
[BlackElo "2394"]
[WhiteTeam "EST"]
[BlackTeam "GER"]
[WhiteClock "0:00:13"]
[BlackClock "0:00:53"]

1. Nf3 {[%clk 0:03:00]}  Nf6 {[%clk 0:02:56]} 2. g3 {[%clk 0:03:01]}  g6 {[%clk 0:02:54]} 3. b3 {[%clk 0:03:01]}  Bg7 {[%clk 0:02:54]} 4. Bb2 {[%clk 0:03:01]}  O-O {[%clk 0:02:55]} 5. Bg2 {[%clk 0:03:01]}  c5 {[%clk 0:02:55]} 6. c4 {[%clk 0:03:01]}  Nc6 {[%clk 0:02:56]} 7. O-O {[%clk 0:03:00]}  d5 {[%clk 0:02:55]} 8. cxd5 {[%clk 0:02:59]}  Nxd5 {[%clk 0:02:56]} 9. Bxg7 {[%clk 0:02:59]}  Kxg7 {[%clk 0:02:56]} 10. d4 {[%clk 0:03:00]}  cxd4 {[%clk 0:02:42]} 11. Nxd4 {[%clk 0:03:01]}  Nxd4 {[%clk 0:02:39]} 12. Qxd4+ {[%clk 0:03:01]}  Nf6 {[%clk 0:02:38]} 13. Qe5 {[%clk 0:03:01]}  Qd6 {[%clk 0:02:20]} 14. Qxd6 {[%clk 0:03:00]}  exd6 {[%clk 0:02:21]} 15. Rd1 {[%clk 0:02:48]}  Rd8 {[%clk 0:02:20]} 16. Nc3 {[%clk 0:02:45]}  Rb8 {[%clk 0:02:16]} 17. Nb5 {[%clk 0:02:42]}  a6 {[%clk 0:02:11]} 18. Nxd6 {[%clk 0:02:34]}  b6 {[%clk 0:02:09]} 19. Nxc8 {[%clk 0:02:30]}  Rbxc8 {[%clk 0:02:07]} 20. Bb7 {[%clk 0:02:14]}  Rxd1+ {[%clk 0:02:05]} 21. Rxd1 {[%clk 0:02:15]}  Rc2 {[%clk 0:02:04]} 22. Bxa6 {[%clk 0:02:15]}  Rxa2 {[%clk 0:02:03]} 23. Bc4 {[%clk 0:02:11]}  Rb2 {[%clk 0:02:02]} 24. Ra1 {[%clk 0:01:49]}  b5 {[%clk 0:01:56]} 25. Bxb5 {[%clk 0:01:49]}  Rxb3 {[%clk 0:01:56]} 26. Bc4 {[%clk 0:01:45]}  Rc3 {[%clk 0:01:54]} 27. Bd3 {[%clk 0:01:41]}  Rc7 {[%clk 0:01:53]} 28. h3 {[%clk 0:01:35]}  h5 {[%clk 0:01:52]} 29. Kg2 {[%clk 0:01:35]}  Re7 {[%clk 0:01:49]} 30. Ra4 {[%clk 0:01:33]}  Rc7 {[%clk 0:01:48]} 31. f4 {[%clk 0:01:27]}  Re7 {[%clk 0:01:48]} 32. Kf3 {[%clk 0:01:25]}  Rc7 {[%clk 0:01:45]} 33. Ra5 {[%clk 0:01:22]}  Rb7 {[%clk 0:01:39]} 34. g4 {[%clk 0:01:20]}  hxg4+ {[%clk 0:01:38]} 35. hxg4 {[%clk 0:01:20]}  Rc7 {[%clk 0:01:38]} 36. g5 {[%clk 0:01:19]}  Nd7 {[%clk 0:01:35]} 37. Ra3 {[%clk 0:01:09]}  Nc5 {[%clk 0:01:23]} 38. Rc3 {[%clk 0:01:03]}  Ne6 {[%clk 0:01:23]} 39. Rxc7 {[%clk 0:01:01]}  Nxc7 {[%clk 0:01:24]} 40. Bc4 {[%clk 0:01:01]}  Kf8 {[%clk 0:01:23]} 41. Ke4 {[%clk 0:00:53]}  Ke7 {[%clk 0:01:22]} 42. Ke5 {[%clk 0:00:45]}  Ne8 {[%clk 0:01:21]} 43. e4 {[%clk 0:00:43]}  Nd6 {[%clk 0:01:20]} 44. Ba6 {[%clk 0:00:38]}  Ne8 {[%clk 0:01:17]} 45. f5 {[%clk 0:00:36]}  gxf5 {[%clk 0:01:17]} 46. exf5 {[%clk 0:00:36]}  f6+ {[%clk 0:01:17]} 47. Kf4 {[%clk 0:00:31]}  fxg5+ {[%clk 0:01:17]} 48. Kxg5 {[%clk 0:00:31]}  Nf6 {[%clk 0:01:17]} 49. Kg6 {[%clk 0:00:30]}  Ng4 {[%clk 0:01:12]} 50. Bb7 {[%clk 0:00:26]}  Nf6 {[%clk 0:01:05]} 51. Kg7 {[%clk 0:00:25]}  Ne8+ {[%clk 0:01:03]} 52. Kg6 {[%clk 0:00:23]}  Nd6 {[%clk 0:00:59]} 53. f6+ {[%clk 0:00:22]}  Kf8 {[%clk 0:00:59]} 54. Bc6 {[%clk 0:00:20]}  Nf7 {[%clk 0:00:57]} 55. Kf5 {[%clk 0:00:19]}  Nh6+ {[%clk 0:00:55]} 56. Kg5 {[%clk 0:00:18]}  Ng8 {[%clk 0:00:53]} 57. Kg6 {[%clk 0:00:13]}  Nxf6 {[%clk 0:00:53]} 1/2-1/2

[Event "November 21 Early 2023"]
[Site "https://www.chess.com"]
[Date "2023.11.21"]
[Round "5"]
[White "Sharafiev, Azat"]
[Black "Manukian, Artak"]
[Result "0-1"]
[Board "146"]
[TimeControl "180+1"]
[WhiteFideId "4186214"]
[BlackFideId "13301373"]
[WhiteElo "2306"]
[BlackElo "2030"]
[WhiteTeam "RUS"]
[BlackTeam "ARM"]
[WhiteClock "0:00:16"]
[BlackClock "0:00:12"]

1. e4 {[%clk 0:02:58]}  c6 {[%clk 0:02:59]} 2. d4 {[%clk 0:02:58]}  d5 {[%clk 0:03:00]} 3. exd5 {[%clk 0:02:58]}  cxd5 {[%clk 0:03:01]} 4. Bd3 {[%clk 0:02:59]}  Nc6 {[%clk 0:03:01]} 5. c3 {[%clk 0:02:59]}  e5 {[%clk 0:03:02]} 6. dxe5 {[%clk 0:02:58]}  Nxe5 {[%clk 0:03:03]} 7. Nf3 {[%clk 0:02:59]}  Nxd3+ {[%clk 0:03:03]} 8. Qxd3 {[%clk 0:02:59]}  Nf6 {[%clk 0:03:03]} 9. O-O {[%clk 0:02:59]}  Be7 {[%clk 0:03:04]} 10. Bf4 {[%clk 0:02:58]}  O-O {[%clk 0:03:04]} 11. Nbd2 {[%clk 0:02:59]}  h6 {[%clk 0:02:55]} 12. h3 {[%clk 0:02:58]}  Be6 {[%clk 0:02:54]} 13. Nb3 {[%clk 0:02:58]}  Qd7 {[%clk 0:02:52]} 14. Ne5 {[%clk 0:02:56]}  Qa4 {[%clk 0:02:51]} 15. Nd4 {[%clk 0:02:53]}  Ne4 {[%clk 0:02:45]} 16. Rfe1 {[%clk 0:02:45]}  Rfe8 {[%clk 0:02:34]} 17. f3 {[%clk 0:02:32]}  Nc5 {[%clk 0:02:27]} 18. Qd2 {[%clk 0:02:28]}  Bf6 {[%clk 0:02:13]} 19. Re2 {[%clk 0:02:13]}  Rad8 {[%clk 0:02:06]} 20. a3 {[%clk 0:01:51]}  Bc8 {[%clk 0:01:57]} 21. Rae1 {[%clk 0:01:50]}  Ne6 {[%clk 0:01:42]} 22. Nxe6 {[%clk 0:01:41]}  Bxe6 {[%clk 0:01:39]} 23. Bg3 {[%clk 0:01:33]}  d4 {[%clk 0:01:32]} 24. Qf4 {[%clk 0:01:28]}  b5 {[%clk 0:01:21]} 25. Nc6 {[%clk 0:01:25]}  Rd7 {[%clk 0:01:06]} 26. Nxd4 {[%clk 0:01:09]}  Bxd4+ {[%clk 0:01:04]} 27. cxd4 {[%clk 0:01:08]}  Rxd4 {[%clk 0:01:05]} 28. Qc7 {[%clk 0:01:05]}  Rd1 {[%clk 0:01:01]} 29. Kh2 {[%clk 0:01:03]}  Rxe1 {[%clk 0:01:00]} 30. Rxe1 {[%clk 0:01:04]}  h5 {[%clk 0:01:00]} 31. h4 {[%clk 0:00:59]}  Rc8 {[%clk 0:00:55]} 32. Qe5 {[%clk 0:00:58]}  Qc2 {[%clk 0:00:42]} 33. Re2 {[%clk 0:00:51]}  Qf5 {[%clk 0:00:37]} 34. Qe3 {[%clk 0:00:45]}  a5 {[%clk 0:00:32]} 35. Qd2 {[%clk 0:00:40]}  a4 {[%clk 0:00:29]} 36. Re5 {[%clk 0:00:40]}  Qc2 {[%clk 0:00:25]} 37. Qd4 {[%clk 0:00:25]}  Qc4 {[%clk 0:00:20]} 38. Qe3 {[%clk 0:00:23]}  Qc1 {[%clk 0:00:17]} 39. Rxb5 {[%clk 0:00:22]}  Qxe3 {[%clk 0:00:17]} 40. Rxh5 {[%clk 0:00:20]}  g6 {[%clk 0:00:16]} 41. Rg5 {[%clk 0:00:20]}  Rc2 {[%clk 0:00:15]} 42. Rb5 {[%clk 0:00:20]}  Qxf3 {[%clk 0:00:12]} 43. Rb8+ {[%clk 0:00:16]}  Kh7 {[%clk 0:00:12]} 0-1

[Event "November 21 Early 2023"]
[Site "https://www.chess.com"]
[Date "2023.11.21"]
[Round "5"]
[White "Kornyukov, Alexey"]
[Black "UNSTOPPABLE_LEGEND"]
[Result "0-1"]
[Board "155"]
[TimeControl "180+1"]
[WhiteFideId "4150457"]
[WhiteElo "2352"]
[BlackElo "2496"]
[WhiteTeam "RUS"]
[WhiteClock "0:00:03"]
[BlackClock "0:00:40"]

1. d4 {[%clk 0:03:00]}  Nf6 {[%clk 0:02:59]} 2. Nc3 {[%clk 0:02:57]}  d5 {[%clk 0:02:58]} 3. Bg5 {[%clk 0:02:56]}  Nbd7 {[%clk 0:02:56]} 4. Nf3 {[%clk 0:02:53]}  h6 {[%clk 0:02:55]} 5. Bh4 {[%clk 0:02:51]}  e6 {[%clk 0:02:56]} 6. e4 {[%clk 0:02:45]}  g5 {[%clk 0:02:55]} 7. e5 {[%clk 0:02:41]}  gxh4 {[%clk 0:02:55]} 8. exf6 {[%clk 0:02:41]}  Qxf6 {[%clk 0:02:54]} 9. Bd3 {[%clk 0:02:40]}  Rg8 {[%clk 0:02:51]} 10. Nb5 {[%clk 0:02:38]}  Qd8 {[%clk 0:02:35]} 11. Rg1 {[%clk 0:02:24]}  a6 {[%clk 0:02:33]} 12. Nc3 {[%clk 0:02:24]}  c5 {[%clk 0:02:26]} 13. dxc5 {[%clk 0:02:09]}  Nxc5 {[%clk 0:02:27]} 14. Qe2 {[%clk 0:02:09]}  b5 {[%clk 0:02:06]} 15. O-O-O {[%clk 0:02:00]}  Be7 {[%clk 0:02:06]} 16. Ne5 {[%clk 0:01:49]}  b4 {[%clk 0:02:03]} 17. Qh5 {[%clk 0:01:30]}  Rf8 {[%clk 0:01:48]} 18. Bg6 {[%clk 0:01:02]}  Bg5+ {[%clk 0:01:40]} 19. Kb1 {[%clk 0:01:01]}  Qf6 {[%clk 0:01:15]} 20. Nxf7 {[%clk 0:00:38]}  Rxf7 {[%clk 0:01:11]} 21. Nxd5 {[%clk 0:00:19]}  exd5 {[%clk 0:01:07]} 22. Rge1+ {[%clk 0:00:19]}  Kf8 {[%clk 0:01:06]} 23. Rxd5 {[%clk 0:00:19]}  Re7 {[%clk 0:00:45]} 24. Rd8+ {[%clk 0:00:10]}  Kg7 {[%clk 0:00:45]} 25. Rxe7+ {[%clk 0:00:07]}  Qxe7 {[%clk 0:00:45]} 26. Re8 {[%clk 0:00:07]}  Qd6 {[%clk 0:00:42]} 27. f4 {[%clk 0:00:06]}  Qxg6 {[%clk 0:00:41]} 28. Qxg6+ {[%clk 0:00:03]}  Kxg6 {[%clk 0:00:42]} 29. fxg5 {[%clk 0:00:04]}  hxg5 {[%clk 0:00:40]} 30. Re5 {[%clk 0:00:03]} 0-1